bitfinex/quotes_BTCUSD_20250124
["timestamp","ask_amount","ask_price","bid_price","bid_amount"]
[1737711577548,1.74643773,105310.0,105300.0,0.03059377]
[1737711577800,1.73743773,105310.0,105300.0,0.03059377]
[1737711578072,1.75543773,105310.0,105300.0,0.03059377]
[1737711578541,1.74643773,105310.0,105300.0,0.03059377]
[1737711578786,1.75543773,105310.0,105300.0,0.03059377]
[1737711579197,0.24643773,105310.0,105300.0,0.03059377]
[1737711579579,0.25543773,105310.0,105300.0,0.03059377]
[1737711580984,0.23743773,105310.0,105300.0,0.03059377]
[1737711581410,0.24643773,105310.0,105300.0,0.03059377]
[1737711581834,0.23743773,105310.0,105300.0,0.03059377]
[1737711582033,0.24643773,105310.0,105300.0,0.03059377]
[1737711582383,0.23243773,105310.0,105300.0,0.03059377]
[1737711582598,0.26354872,105310.0,105300.0,0.03059377]
[1737711582801,0.32720305,105310.0,105300.0,0.03059377]
[1737711583015,0.31720305,105310.0,105300.0,0.03059377]
[1737711583236,1.80820305,105310.0,105300.0,0.03059377]
[1737711583677,1.81720305,105310.0,105300.0,0.03059377]
[1737711583875,1.80820305,105310.0,105300.0,0.03059377]
[1737711584510,1.81720305,105310.0,105300.0,0.03059377]
[1737711584915,1.80820305,105310.0,105300.0,0.03059377]
[1737711585346,1.81685325,105310.0,105300.0,0.03059377]
[1737711585552,1.81800435,105310.0,105300.0,0.03059377]
[1737711585796,1.73494751,105310.0,105300.0,0.03059377]
[1737711586369,1.71494751,105310.0,105300.0,0.03059377]
[1737711586581,0.12760022,105310.0,105300.0,0.03059377]
[1737711586791,0.03264322,105310.0,105300.0,0.03059377]
[1737711587300,0.12760022,105310.0,105300.0,0.03059377]
[1737711587503,0.11860022,105310.0,105300.0,0.03059377]
[1737711587710,0.11960022,105310.0,105300.0,0.03059377]
[1737711588334,0.11860022,105310.0,105300.0,0.03059377]
[1737711588542,0.11560022,105310.0,105300.0,0.03059377]
[1737711588759,0.11660022,105310.0,105300.0,0.03059377]
[1737711589184,0.10960022,105310.0,105300.0,0.03059377]
[1737711589386,0.11160022,105310.0,105300.0,0.03059377]
[1737711589603,0.11589884,105310.0,105300.0,0.03059377]
[1737711589990,0.11189884,105310.0,105300.0,0.03059377]
[1737711590395,1.62089884,105310.0,105300.0,0.03059377]
[1737711590802,1.61889884,105310.0,105300.0,0.03059377]
[1737711591050,1.62589884,105310.0,105300.0,0.03059377]
[1737711591477,1.61689884,105310.0,105300.0,0.03059377]
[1737711591658,1.60989884,105310.0,105300.0,0.03059377]
[1737711591885,1.61889884,105310.0,105300.0,0.03059377]
[1737711592110,1.62689884,105310.0,105300.0,0.03059377]
[1737711595651,1.71424613,105310.0,105300.0,0.03059377]
[1737711597525,0.21424613,105310.0,105300.0,0.03059377]
[1737711598148,1.71424613,105310.0,105300.0,0.03059377]
[1737711598563,0.21424613,105310.0,105300.0,0.03059377]
[1737711601804,0.21412032,105310.0,105300.0,0.03059377]
[1737711602895,0.12677303,105310.0,105300.0,0.03059377]
[1737711603100,0.03181603,105310.0,105300.0,0.12555977]
[1737711603937,0.02181603,105310.0,105300.0,0.12555977]
[1737711604371,0.03181603,105310.0,105300.0,0.12555977]
[1737711604539,0.12677303,105310.0,105300.0,0.12555977]
[1737711604773,0.03181603,105310.0,105300.0,0.12555977]
[1737711604962,0.02181603,105310.0,105300.0,0.12555977]
[1737711606055,0.01381603,105310.0,105300.0,0.1265093]
[1737711606423,0.01581603,105310.0,105300.0,0.1265093]
[1737711606573,0.01581603,105310.0,105300.0,0.12555977]
[1737711607015,0.00681603,105310.0,105300.0,0.12555977]
[1737711607437,0.00981603,105310.0,105300.0,0.12650926]
[1737711607810,0.00981603,105310.0,105300.0,0.12555977]
[1737711608847,0.10477303,105310.0,105300.0,0.03059377]
[1737711608997,0.00981603,105310.0,105300.0,0.12555977]
[1737711611107,0.00781603,105310.0,105300.0,0.12555977]
[1737711611715,0.01641603,105310.0,105300.0,0.12555977]
[1737711612615,0.02341603,105310.0,105300.0,0.12555977]
[1737711612823,0.02341603,105310.0,105300.0,0.22385656]
[1737711613037,0.02341603,105310.0,105300.0,0.22290706]
[1737711613247,0.01760965,105310.0,105300.0,0.22290706]
[1737711613461,0.01960965,105310.0,105300.0,0.22290706]
[1737711614543,0.01760965,105310.0,105300.0,0.22290706]
[1737711614758,0.01460965,105310.0,105300.0,0.22290706]
[1737711614914,0.01560965,105310.0,105300.0,0.22390706]
[1737711615330,0.01560965,105310.0,105300.0,0.36960706]
[1737711615913,0.01560965,105310.0,105300.0,0.37060706]
[1737711616322,0.01460965,105310.0,105300.0,0.36960706]
[1737711616525,0.01460965,105310.0,105300.0,0.36860706]
[1737711616725,0.01560965,105310.0,105300.0,0.37060706]
[1737711617121,0.00989862,105310.0,105300.0,0.37060706]
[1737711617846,0.01565256,105310.0,105300.0,0.37060706]
[1737711617967,0.00989862,105310.0,105300.0,0.37060706]
[1737711618166,0.01565256,105310.0,105300.0,0.37060706]
[1737711620023,0.00989862,105310.0,105300.0,0.37060706]
[1737711620233,0.01565256,105310.0,105300.0,0.37060706]
[1737711623845,0.00989862,105310.0,105300.0,0.37060706]
[1737711626650,6.2e-07,105310.0,105300.0,0.37060706]
[1737711626851,5.6e-07,105310.0,105300.0,0.37060706]
[1737711627080,0.00029862,105320.0,105310.0,0.117957]
[1737711627280,0.00029862,105320.0,105310.0,0.29885343]
[1737711627422,0.00029862,105320.0,105310.0,0.29790429]
[1737711627627,0.00511217,105320.0,105310.0,0.29790429]
[1737711627843,0.00029862,105320.0,105310.0,0.29790429]
[1737711628257,0.00129862,105320.0,105310.0,0.29890429]
[1737711628449,0.00614704,105320.0,105310.0,0.29890429]
[1737711628648,0.00129862,105320.0,105310.0,0.29890429]
[1737711628891,0.00615183,105320.0,105310.0,0.29890429]
[1737711629061,0.00129862,105320.0,105310.0,0.29890429]
[1737711629261,0.00615183,105320.0,105310.0,0.29890429]
[1737711629487,0.00129862,105320.0,105310.0,0.29990429]
[1737711629689,0.00615183,105320.0,105310.0,0.29990429]
[1737711630259,0.00129862,105320.0,105310.0,0.29990429]
[1737711632059,0.00399511,105320.0,105310.0,0.29990429]
[1737711632271,0.00399511,105320.0,105310.0,0.31879002]
[1737711632272,0.00129862,105320.0,105310.0,0.31879002]
[1737711632410,0.0039947,105320.0,105310.0,0.31879002]
[1737711632638,0.00129862,105320.0,105310.0,0.31879002]
[1737711632871,0.00642469,105320.0,105310.0,0.31879002]
[1737711633118,0.00642469,105320.0,105310.0,0.32849601]
[1737711634989,0.00642469,105320.0,105310.0,0.32863801]
[1737711642957,0.00642469,105320.0,105310.0,0.47863801]
[1737711648227,0.1255,105310.0,105300.0,0.1152716]
[1737711648464,0.189996,105270.0,105240.0,0.29509249]
[1737711648708,0.284992,105270.0,105250.0,0.09550224]
[1737711648910,0.199996,105270.0,105250.0,0.00049224]
[1737711649113,0.00407271,105260.0,105250.0,0.09550124]
[1737711649315,0.00407271,105260.0,105250.0,0.0964512]
[1737711649522,0.00407271,105260.0,105250.0,0.00049224]
[1737711649728,0.09907471,105260.0,105250.0,0.00049224]
[1737711649941,0.206422,105260.0,105250.0,0.00049224]
[1737711650161,0.226422,105260.0,105250.0,0.00049224]
[1737711650401,0.227422,105260.0,105250.0,0.00349224]
[1737711651009,0.217422,105260.0,105250.0,0.00349224]
[1737711652537,0.197422,105260.0,105250.0,0.00349224]
[1737711652797,0.217422,105260.0,105250.0,0.00349224]
[1737711652993,0.197422,105260.0,105250.0,0.00349224]
[1737711653454,0.197422,105260.0,105250.0,0.00249224]
[1737711653652,0.196422,105260.0,105250.0,0.00049224]
[1737711653882,0.197422,105260.0,105250.0,0.00049224]
[1737711654085,0.247122,105260.0,105250.0,0.00049224]
[1737711654491,0.270122,105260.0,105250.0,0.00049224]
[1737711654691,0.095011,105250.0,105240.0,0.0001421]
[1737711654865,0.19307661,105250.0,105240.0,0.00023536]
[1737711655086,0.19707334,105250.0,105240.0,0.00023536]
[1737711655320,0.105029,105230.0,105220.0,0.0158165]
[1737711655499,0.10734729,105230.0,105220.0,0.1109478]
[1737711655703,0.11132128,105230.0,105220.0,0.1109478]
[1737711655899,0.20635028,105230.0,105220.0,0.1659098]
[1737711656419,0.22635028,105230.0,105220.0,0.1659098]
[1737711656797,0.20735028,105230.0,105220.0,0.1669098]
[1737711657171,0.20735028,105230.0,105220.0,0.2619478]
[1737711657383,0.01497399,105230.0,105220.0,0.2619478]
[1737711657842,0.00497399,105230.0,105220.0,0.2619478]
[1737711659425,0.00497399,105230.0,105220.0,0.2620898]
[1737711660339,0.11000299,105230.0,105220.0,0.1670518]
[1737711660562,0.11000299,105230.0,105220.0,0.1120898]
[1737711662328,0.01497399,105230.0,105220.0,0.1120898]
[1737711662535,0.00497399,105230.0,105220.0,0.1120898]
[1737711663211,0.00497399,105230.0,105220.0,0.11304]
[1737711663415,0.00497399,105230.0,105220.0,0.21038729]
[1737711663608,0.001,105230.0,105220.0,0.28733709]
[1737711663807,0.00615593,105230.0,105220.0,0.28733709]
[1737711664084,0.001,105230.0,105220.0,0.28733709]
[1737711664525,0.00615613,105230.0,105220.0,0.28733709]
[1737711664666,0.001,105230.0,105220.0,0.1899898]
[1737711664879,0.00615613,105230.0,105220.0,0.19094]
[1737711665084,0.001,105230.0,105220.0,0.1899898]
[1737711665510,0.00608012,105230.0,105220.0,0.1899898]
[1737711665713,0.00508012,105230.0,105220.0,0.1889898]
[1737711665888,0.00608012,105230.0,105220.0,0.1959898]
[1737711666343,0.00608012,105230.0,105220.0,0.1889898]
[1737711666544,0.00708012,105230.0,105220.0,0.1939898]
[1737711666752,0.00708012,105230.0,105220.0,0.19494002]
[1737711667092,0.00708012,105230.0,105220.0,0.1939898]
[1737711667300,0.10210912,105230.0,105220.0,0.1160898]
[1737711667737,0.00708012,105230.0,105220.0,0.1160898]
[1737711667959,0.00708012,105230.0,105220.0,0.0210518]
[1737711667960,0.21945641,105230.0,105220.0,0.0210518]
[1737711668194,0.21945641,105230.0,105220.0,0.0220518]
[1737711668633,0.19945641,105230.0,105220.0,0.0220518]
[1737711669512,0.00708012,105230.0,105220.0,0.1170898]
[1737711669733,0.00708012,105230.0,105220.0,0.21443709]
[1737711670194,0.00346162,105230.0,105220.0,0.34043709]
[1737711670415,0.03,105270.0,105250.0,0.380021]
[1737711670665,0.03,105270.0,105260.0,0.095002]
[1737711670666,0.01,105270.0,105260.0,0.095002]
[1737711670887,0.01,105270.0,105260.0,0.284999]
[1737711671104,0.124993,105270.0,105260.0,0.095002]
[1737711671319,0.105002,105260.0,105250.0,0.28502]
[1737711671532,0.105002,105260.0,105240.0,0.190027]
[1737711671533,0.01,105260.0,105240.0,0.190027]
[1737711671746,0.105009,105260.0,105240.0,0.095014]
[1737711671956,0.105007,105260.0,105250.0,0.095011]
[1737711672173,0.295018,105260.0,105240.0,0.3801553]
[1737711672377,0.01,105260.0,105250.0,0.285026]
[1737711672582,0.01,105260.0,105250.0,0.290026]
[1737711672791,0.105002,105260.0,105250.0,0.100011]
[1737711672999,0.125002,105260.0,105250.0,0.100011]
[1737711673210,0.125002,105260.0,105250.0,0.101011]
[1737711674068,0.125002,105260.0,105250.0,0.291027]
[1737711674284,0.125002,105260.0,105250.0,0.006]
[1737711675462,0.21234929,105260.0,105250.0,0.006]
[1737711676196,0.19234929,105260.0,105250.0,0.006]
[1737711676410,0.125011,105250.0,105240.0,0.2851523]
[1737711676653,0.125011,105250.0,105240.0,0.0951133]
[1737711677625,0.105011,105250.0,105240.0,0.0951133]
[1737711677864,0.01,105250.0,105240.0,0.0951133]
[1737711678107,2.3797,105260.0,105250.0,0.095011]
[1737711678290,0.8797,105260.0,105250.0,0.095011]
[1737711679264,0.8797,105260.0,105250.0,0.100011]
[1737711679651,0.8797,105260.0,105250.0,0.095011]
[1737711679857,0.8797,105260.0,105250.0,0.101011]
[1737711680064,0.974702,105260.0,105250.0,0.006]
[1737711680262,0.974702,105260.0,105250.0,0.101011]
[1737711681285,0.974702,105260.0,105250.0,0.096011]
[1737711681496,0.974702,105260.0,105250.0,0.098011]
[1737711681704,0.8797,105260.0,105250.0,0.098011]
[1737711682122,0.8797,105260.0,105250.0,0.097011]
[1737711682954,0.964702,105260.0,105250.0,0.097011]
[1737711683178,0.96500062,105260.0,105250.0,0.097011]
[1737711683591,0.87999862,105260.0,105250.0,0.097011]
[1737711684214,0.96500062,105260.0,105250.0,0.097011]
[1737711685201,0.87999862,105260.0,105250.0,0.097011]
[1737711686201,0.86999862,105260.0,105250.0,0.097011]
[1737711689003,0.87999862,105260.0,105250.0,0.097011]
[1737711691384,0.87999862,105260.0,105250.0,0.10449173]
[1737711698650,0.97500062,105260.0,105250.0,0.097011]
[1737711698844,0.96500062,105260.0,105250.0,0.097011]
[1737711699592,0.87999862,105260.0,105250.0,0.097011]
[1737711700261,0.97500062,105260.0,105250.0,0.097011]
[1737711700467,0.87999862,105260.0,105250.0,0.097011]
[1737711700673,0.97500062,105260.0,105250.0,0.097011]
[1737711700943,0.87999862,105260.0,105250.0,0.097011]
[1737711702671,0.97500062,105260.0,105250.0,0.097011]
[1737711703701,0.87999862,105260.0,105250.0,0.097011]
[1737711709329,0.87999862,105260.0,105250.0,0.10328524]
[1737711717423,0.86999862,105260.0,105250.0,0.32838255]
[1737711717627,0.86999862,105260.0,105250.0,0.32743253]
[1737711718694,0.86999862,105260.0,105250.0,0.32843253]
[1737711718892,0.86999862,105260.0,105250.0,0.32643253]
[1737711719095,0.86999862,105260.0,105250.0,0.33043253]
[1737711719473,0.86999862,105260.0,105250.0,0.33243253]
[1737711720534,0.86999862,105260.0,105250.0,0.47743253]
[1737711720741,0.86999862,105260.0,105250.0,0.49679641]
[1737711720947,0.87099862,105260.0,105250.0,0.50379641]
[1737711727325,0.87099862,105260.0,105250.0,0.48379641]
[1737711727536,0.87099862,105260.0,105250.0,0.50679641]
[1737711727940,0.85185374,105260.0,105250.0,0.54479141]
[1737711728150,0.85185374,105260.0,105250.0,0.55559141]
[1737711728353,0.84865516,105260.0,105250.0,0.40559141]
[1737711728560,0.84865516,105260.0,105250.0,0.40359141]
[1737711728769,0.84765516,105260.0,105250.0,0.39859141]
[1737711728912,0.84865516,105260.0,105250.0,0.40759141]
[1737711729131,0.83155516,105260.0,105250.0,0.40759141]
[1737711730338,0.80703084,105260.0,105250.0,0.40759141]
[1737711730544,0.76902884,105260.0,105250.0,0.40759141]
[1737711730733,0.76902884,105260.0,105250.0,0.33579641]
[1737711731908,0.76902884,105260.0,105250.0,0.35879641]
[1737711732769,0.74977884,105260.0,105250.0,0.35879641]
[1737711734181,0.67377484,105260.0,105250.0,0.35879641]
[1737711734387,0.65477384,105260.0,105250.0,0.35879641]
[1737711734800,0.64937384,105260.0,105250.0,0.35879641]
[1737711735210,0.55436884,105260.0,105250.0,0.35879641]
[1737711735723,0.51085184,105260.0,105250.0,0.35879641]
[1737711735931,0.51085184,105260.0,105250.0,0.45861641]
[1737711735932,0.43341438,105260.0,105250.0,0.45861641]
[1737711736136,0.31731238,105260.0,105250.0,0.45861641]
[1737711736310,0.14245938,105260.0,105250.0,0.45861641]
[1737711736638,0.11165338,105260.0,105250.0,0.45861641]
[1737711736884,0.11165338,105260.0,105250.0,0.45661641]
[1737711737140,0.04869862,105320.0,105310.0,0.094957]
[1737711737831,0.05869862,105320.0,105310.0,0.094957]
[1737711738208,0.04869862,105320.0,105310.0,0.094957]
[1737711738413,0.04869862,105320.0,105310.0,0.0960503]
[1737711738729,0.05869862,105320.0,105310.0,0.0960503]
[1737711739025,0.04869862,105320.0,105310.0,0.0960503]
[1737711739965,0.14364662,105320.0,105310.0,0.0010933]
[1737711740282,0.26099391,105320.0,105310.0,0.0010933]
[1737711740487,1.76099391,105320.0,105310.0,0.0010933]
[1737711740918,0.24099391,105320.0,105310.0,0.0010933]
[1737711741129,0.24099391,105320.0,105310.0,0.0950503]
[1737711741338,0.26199391,105320.0,105310.0,9.33e-05]
[1737711741950,0.26099391,105320.0,105310.0,9.33e-05]
[1737711742148,0.26199391,105320.0,105310.0,9.33e-05]
[1737711742354,0.04969862,105320.0,105310.0,0.0950503]
[1737711742596,0.14464662,105320.0,105310.0,9.33e-05]
[1737711742979,0.26199391,105320.0,105310.0,9.33e-05]
[1737711747221,0.04969862,105320.0,105310.0,0.0950503]
[1737711747435,0.16464662,105320.0,105310.0,9.33e-05]
[1737711747639,0.16464662,105320.0,105310.0,0.0950503]
[1737711747845,0.16464662,105320.0,105310.0,9.33e-05]
[1737711752450,0.10624662,105320.0,105310.0,0.0950503]
[1737711752866,0.12624662,105320.0,105310.0,0.0950503]
[1737711753266,0.10624662,105320.0,105310.0,0.0950503]
[1737711753471,0.01129862,105320.0,105310.0,0.0950503]
[1737711753668,0.00129862,105320.0,105310.0,0.19334712]
[1737711754805,0.00129862,105320.0,105310.0,0.19239759]
[1737711755241,0.01129862,105320.0,105310.0,0.0950503]
[1737711755688,0.10624662,105320.0,105310.0,0.0950503]
[1737711756124,0.00129862,105320.0,105310.0,0.0950503]
[1737711756771,0.00129862,105320.0,105310.0,0.19334704]
[1737711757176,0.00029862,105320.0,105310.0,0.19334704]
[1737711757606,0.00029862,105320.0,105310.0,0.0960503]
[1737711757757,0.00029862,105320.0,105310.0,0.11840271]
[1737711759128,0.00029862,105320.0,105310.0,0.0990503]
[1737711759337,0.00029862,105320.0,105310.0,0.09999974]
[1737711759540,0.00029862,105320.0,105310.0,0.0990503]
[1737711760715,0.00029862,105320.0,105310.0,0.0999997]
[1737711760917,0.00029862,105320.0,105310.0,0.19734699]
[1737711761124,0.00029862,105320.0,105310.0,0.20317147]
[1737711761337,0.00029862,105320.0,105310.0,0.28297147]
[1737711765862,0.00029862,105320.0,105310.0,0.30597147]
[1737711769467,0.00029862,105320.0,105310.0,0.28297147]
[1737711769983,0.00029862,105320.0,105310.0,0.30597147]
[1737711775226,0.01029862,105320.0,105310.0,0.18562418]
[1737711775436,0.01029862,105320.0,105310.0,0.10582418]
[1737711782133,0.00029862,105320.0,105310.0,0.10677359]
[1737711783612,0.00029862,105320.0,105310.0,0.22712088]
[1737711783846,0.00029862,105320.0,105310.0,0.22617147]
[1737711786934,0.22334662,105320.0,105310.0,0.01086718]
[1737711787144,0.39100717,105320.0,105310.0,0.0040933]
[1737711787345,0.33069391,105320.0,105310.0,0.0040933]
[1737711787964,0.33069391,105320.0,105310.0,0.0010933]
[1737711788377,0.33069391,105320.0,105310.0,9.33e-05]
[1737711788819,0.33269391,105320.0,105310.0,9.33e-05]
[1737711789788,0.35182402,105320.0,105310.0,9.33e-05]
[1737711790000,0.34182402,105320.0,105310.0,9.33e-05]
[1737711790223,0.32269391,105320.0,105310.0,9.33e-05]
[1737711803359,0.19459391,105320.0,105310.0,9.33e-05]
[1737711804460,0.21459391,105320.0,105310.0,9.33e-05]
[1737711804863,0.11724662,105320.0,105310.0,0.2450503]
[1737711805062,0.11724662,105320.0,105310.0,0.1500933]
[1737711805063,0.19459391,105320.0,105310.0,0.1500933]
[1737711805269,0.19531223,105320.0,105310.0,0.1500933]
[1737711805726,0.19459391,105320.0,105310.0,0.1500933]
[1737711806282,0.19459391,105320.0,105310.0,9.33e-05]
[1737711807680,0.01,105300.0,105290.0,0.56803875]
[1737711807819,0.01,105300.0,105290.0,0.5680879]
[1737711808724,0.01,105300.0,105290.0,0.5690879]
[1737711808854,0.01,105300.0,105290.0,0.5720879]
[1737711809943,0.094966,105300.0,105290.0,0.23270319]
[1737711810142,0.094966,105300.0,105290.0,0.15404915]
[1737711810627,0.114966,105300.0,105290.0,0.15404915]
[1737711810870,0.114966,105300.0,105290.0,0.15104915]
[1737711811042,0.114966,105300.0,105290.0,0.15304915]
[1737711811270,0.114966,105300.0,105290.0,0.15404915]
[1737711812411,0.114966,105300.0,105290.0,0.15304915]
[1737711813038,0.115966,105300.0,105290.0,0.15304915]
[1737711814536,0.115966,105300.0,105290.0,0.15319125]
[1737711816796,0.115966,105300.0,105290.0,0.00319125]
[1737711830705,0.105966,105300.0,105290.0,0.00319125]
[1737711842400,0.095966,105300.0,105290.0,0.00319125]
[1737711848813,0.031,105300.0,105290.0,0.2933573]
[1737711849047,0.03129842,105300.0,105290.0,0.2933573]
[1737711849304,0.02129842,105300.0,105290.0,0.2933573]
[1737711849503,0.03129842,105300.0,105290.0,0.2933573]
[1737711849728,0.03029842,105300.0,105290.0,0.2903573]
[1737711850163,0.03029842,105300.0,105290.0,0.2943573]
[1737711852750,0.03029842,105300.0,105290.0,0.3130715]
[1737711853729,0.03029842,105300.0,105290.0,0.32127492]
[1737711855782,0.02029842,105300.0,105290.0,0.32127492]
[1737711855991,0.03029842,105300.0,105290.0,0.32127492]
[1737711856831,0.00029842,105300.0,105290.0,0.48681326]
[1737711857049,0.00029842,105300.0,105290.0,0.57800431]
[1737711857319,0.00029842,105310.0,105300.0,0.245966]
[1737711857712,0.11525542,105310.0,105300.0,0.451]
[1737711857888,0.104966,105300.0,105290.0,0.08299125]
[1737711858232,0.114966,105300.0,105290.0,0.08499125]
[1737711858450,0.114966,105300.0,105290.0,0.08199125]
[1737711858670,0.114966,105300.0,105290.0,0.18396625]
[1737711858918,0.114966,105300.0,105290.0,0.17696625]
[1737711859336,0.114966,105300.0,105290.0,0.17996625]
[1737711859612,0.114966,105300.0,105290.0,0.17796625]
[1737711860040,0.114966,105300.0,105290.0,0.08299125]
[1737711860215,0.114966,105300.0,105290.0,0.17796625]
[1737711860437,0.114966,105300.0,105290.0,0.08299125]
[1737711860602,0.114966,105300.0,105290.0,0.17796625]
[1737711860784,0.114966,105300.0,105290.0,0.08299125]
[1737711861195,0.114966,105300.0,105290.0,0.17796625]
[1737711861418,0.114966,105300.0,105290.0,0.08299125]
[1737711861631,0.11526442,105300.0,105290.0,0.17796625]
[1737711862592,0.11526442,105300.0,105290.0,0.08299125]
[1737711863458,0.11526442,105300.0,105290.0,0.00319125]
[1737711865721,0.11526442,105300.0,105290.0,0.09816625]
[1737711865933,0.11526442,105300.0,105290.0,0.00319125]
[1737711866139,0.11526442,105300.0,105290.0,0.09816625]
[1737711866974,0.02029842,105300.0,105290.0,0.09816625]
[1737711868908,0.11526442,105300.0,105290.0,0.09816625]
[1737711869105,0.11526442,105300.0,105290.0,0.00319125]
[1737711873451,0.11526442,105300.0,105290.0,0.09816625]
[1737711873653,0.11526442,105300.0,105290.0,0.00319125]
[1737711876143,0.11526442,105300.0,105290.0,0.09816625]
[1737711876791,0.11526442,105300.0,105290.0,0.24816625]
[1737711878939,0.11526442,105300.0,105290.0,0.15319125]
[1737711885798,0.02029842,105300.0,105290.0,0.31635293]
[1737711886128,0.01029842,105300.0,105290.0,0.39635293]
[1737711886330,0.02029842,105300.0,105290.0,0.39635293]
[1737711886719,0.03029842,105300.0,105290.0,0.39635293]
[1737711886933,0.00029842,105300.0,105290.0,0.39635293]
[1737711887151,0.01029842,105300.0,105290.0,0.39635293]
[1737711889346,0.03029842,105300.0,105290.0,0.39635293]
[1737711889931,0.03029842,105300.0,105290.0,0.40469874]
[1737711890178,0.03029842,105300.0,105290.0,0.41336236]
[1737711890982,0.01029842,105300.0,105290.0,0.41336236]
[1737711891831,0.03029842,105300.0,105290.0,0.41336236]
[1737711892234,0.01029842,105300.0,105290.0,0.41336236]
[1737711893882,0.01029842,105300.0,105290.0,0.40469874]
[1737711895690,0.03029842,105300.0,105290.0,0.40469874]
[1737711896978,0.11526442,105300.0,105290.0,0.23319125]
[1737711897208,0.11526442,105300.0,105290.0,0.24816625]
[1737711897357,0.11526442,105300.0,105290.0,0.15319125]
[1737711900573,0.26151671,105300.0,105290.0,0.15319125]
[1737711900772,0.33589839,105300.0,105290.0,0.00319125]
[1737711901222,2.27958507,105300.0,105290.0,0.00319125]
[1737711901423,2.28958507,105300.0,105290.0,0.00319125]
[1737711901656,2.27958507,105300.0,105290.0,0.00319125]
[1737711901863,2.27958507,105300.0,105290.0,0.00019125]
[1737711902392,2.30958507,105300.0,105290.0,0.00019125]
[1737711902630,2.34386433,105300.0,105290.0,0.00019125]
[1737711902865,2.42177175,105300.0,105290.0,2.5e-07]
[1737711903332,2.42077175,105300.0,105290.0,2.5e-07]
[1737711903531,2.42277175,105300.0,105290.0,2.5e-07]
[1737711903709,0.92618193,105300.0,105290.0,2.5e-07]
[1737711904234,0.93460965,105300.0,105290.0,2.5e-07]
[1737711905268,0.78762454,105300.0,105290.0,2.5e-07]
[1737711905477,0.80762454,105300.0,105290.0,2.5e-07]
[1737711905839,2.43034177,105300.0,105290.0,2.5e-07]
[1737711907402,0.93034177,105300.0,105290.0,2.5e-07]
[1737711912461,0.80635666,105300.0,105290.0,2.5e-07]
[1737711913619,0.82635666,105300.0,105290.0,2.5e-07]
[1737711915110,0.93034177,105300.0,105290.0,2.5e-07]
[1737711915563,0.82635666,105300.0,105290.0,2.5e-07]
[1737711916202,0.93034177,105300.0,105290.0,2.5e-07]
[1737711916407,0.82635666,105300.0,105290.0,2.5e-07]
[1737711917184,0.91034177,105300.0,105290.0,2.5e-07]
[1737711917402,0.80635666,105300.0,105290.0,2.5e-07]
[1737711917601,0.93034177,105300.0,105290.0,2.5e-07]
[1737711925099,0.72338906,105300.0,105290.0,2.5e-07]
[1737711925769,0.62604177,105300.0,105290.0,2.5e-07]
[1737711926601,0.62404177,105300.0,105290.0,2.5e-07]
[1737711927025,0.62704177,105300.0,105290.0,2.5e-07]
[1737711927853,0.62804177,105300.0,105290.0,2.5e-07]
[1737711930644,0.60804177,105300.0,105290.0,2.5e-07]
[1737711930876,0.35775666,105300.0,105290.0,2.5e-07]
[1737711931062,0.37775666,105300.0,105290.0,2.5e-07]
[1737711931443,1.88775666,105300.0,105290.0,2.5e-07]
[1737711931660,1.98174177,105300.0,105290.0,2.5e-07]
[1737711939091,1.88775666,105300.0,105290.0,2.5e-07]
[1737711940426,1.88775666,105300.0,105290.0,0.15000025]
[1737711942870,1.86775666,105300.0,105290.0,0.15000025]
[1737711943204,1.88775666,105300.0,105290.0,0.15000025]
[1737711944498,1.86775666,105300.0,105290.0,0.15000025]
[1737711944704,1.88775666,105300.0,105290.0,0.15000025]
[1737711945822,1.92022153,105300.0,105290.0,0.15000025]
[1737711948080,1.90022153,105300.0,105290.0,0.15000025]
[1737711948289,1.92022153,105300.0,105290.0,0.15000025]
[1737711949800,1.90022153,105300.0,105290.0,0.15000025]
[1737711950635,1.92022153,105300.0,105290.0,0.15000025]
[1737711951434,1.91022153,105300.0,105290.0,0.15000025]
[1737711951613,1.91022153,105300.0,105290.0,0.23180025]
[1737711951814,1.75377155,105300.0,105290.0,0.23180025]
[1737711952007,1.73503943,105300.0,105290.0,0.23180025]
[1737711952471,1.73503943,105300.0,105290.0,0.27920025]
[1737711952472,0.23503943,105300.0,105290.0,0.27920025]
[1737711953117,0.30326442,105300.0,105290.0,0.27920025]
[1737711953767,0.30026442,105300.0,105290.0,0.27920025]
[1737711954599,0.29926442,105300.0,105290.0,0.27920025]
[1737711955017,0.30026442,105300.0,105290.0,0.27920025]
[1737711955644,0.30126442,105300.0,105290.0,0.27920025]
[1737711955846,0.23303943,105300.0,105290.0,0.27920025]
[1737711956486,1.73303943,105300.0,105290.0,0.27920025]
[1737711958903,1.72461171,105300.0,105290.0,0.27920025]
[1737711959954,0.02,105260.0,105220.0,0.03952237]
[1737711960177,0.00495276,105210.0,105140.0,0.285319]
[1737711960382,0.190247,105130.0,105110.0,0.83209343]
[1737711960597,0.210247,105130.0,105110.0,0.83209343]
[1737711960809,0.380502,105130.0,105110.0,0.84109826]
[1737711961019,0.190247,105130.0,105110.0,0.83209343]
[1737711961234,1.5,105120.0,105110.0,0.83209343]
[1737711961442,1.52,105120.0,105110.0,0.83258655]
[1737711961652,1.5,105120.0,105110.0,0.83258655]
[1737711961863,1.51,105120.0,105110.0,0.83258655]
[1737711962083,0.02,105120.0,105110.0,0.83258655]
[1737711962300,0.03,105120.0,105110.0,0.83258655]
[1737711962514,0.03,105130.0,105110.0,0.83258655]
[1737711962723,1.51,105130.0,105120.0,0.15]
[1737711962964,1.53,105130.0,105120.0,0.15]
[1737711963184,0.03,105130.0,105120.0,0.15]
[1737711963394,0.03,105130.0,105110.0,1.00002255]
[1737711963609,0.03,105130.0,105110.0,1.19029755]
[1737711964047,0.03,105130.0,105110.0,0.90488655]
[1737711964293,0.11464172,105130.0,105110.0,0.23756184]
[1737711964497,0.11464172,105130.0,105110.0,0.14421455]
[1737711964706,0.11464172,105130.0,105110.0,0.14021455]
[1737711965148,0.11464172,105130.0,105110.0,0.52492104]
[1737711965362,0.11464172,105130.0,105120.0,0.001]
[1737711965785,0.11464172,105130.0,105110.0,0.52396984]
[1737711965998,0.11464172,105130.0,105120.0,0.095129]
[1737711966283,0.11464172,105130.0,105110.0,0.42675275]
[1737711966502,0.11464172,105130.0,105110.0,0.71438404]
[1737711966728,0.03,105130.0,105110.0,0.71438404]
[1737711966947,0.031,105130.0,105110.0,0.71438504]
[1737711967378,0.031,105130.0,105110.0,0.33283504]
[1737711967591,0.031,105130.0,105110.0,0.52311004]
[1737711967802,0.034,105130.0,105110.0,0.52311004]
[1737711967999,0.031,105130.0,105110.0,0.33284004]
[1737711968207,0.031,105130.0,105110.0,0.23770404]
[1737711968208,0.126121,105130.0,105110.0,0.23770404]
[1737711968411,0.126121,105130.0,105110.0,0.14035675]
[1737711968647,0.02,105120.0,105110.0,0.14035675]
[1737711968853,0.02,105120.0,105110.0,0.29035675]